bitfinex/quotes_SOLUSD_20220117
["timestamp","ask_amount","ask_price","bid_price","bid_amount"]
[1642404409189,16.45,143.61,143.54,16.37]
[1642404409389,16.7,143.61,143.54,16.37]
[1642404411099,10.45,143.61,143.54,16.37]
[1642404416595,10.45,143.61,143.55,24.5707]
[1642404416996,10.45,143.61,143.55,24.8207]
[1642404418305,10.7,143.61,143.52,35.0263]
[1642404418497,19.78882148,143.61,143.52,35.0263]
[1642404418697,25.78882148,143.61,143.52,35.0263]
[1642404420300,18.31882148,143.61,143.52,35.2763]
[1642404420898,18.31882148,143.61,143.52,74.79763157]
[1642404423500,18.31882148,143.61,143.52,35.2763]
[1642404424401,18.31882148,143.61,143.52,25.1563]
[1642404424999,54.57142931,143.6,143.52,25.1563]
[1642404425199,10.4525,143.58,143.52,25.1563]
[1642404425399,10.7025,143.58,143.52,25.1563]
[1642404425600,16.7025,143.58,143.52,25.1563]
[1642404425801,16.4525,143.58,143.52,25.1563]
[1642404428736,6.0,143.58,143.52,25.1563]
[1642404428941,16.4507,143.6,143.52,95.0563]
[1642404429136,16.7007,143.6,143.53,23.9222]
[1642404429435,16.7007,143.6,143.53,24.1722]
[1642404429636,56.01169249,143.6,143.53,63.58510888]
[1642404430237,56.01169249,143.6,143.53,24.1722]
[1642404432440,56.01169249,143.6,143.53,23.9222]
[1642404432640,56.01169249,143.6,143.48,10.12]
[1642404432839,61.48769249,143.6,143.46,10.42020833]
[1642404433039,1.70077588,143.59,143.46,3.97532049]
[1642404433239,10.4571,143.56,143.46,3.97532049]
[1642404433440,35.62872352,143.55,143.46,3.97532049]
[1642404433841,41.87872352,143.55,143.46,3.97532049]
[1642404434439,41.87872352,143.55,143.44,24.1949]
[1642404435140,51.99872352,143.55,143.44,24.1949]
[1642404435541,38.76966757,143.52,143.44,24.1949]
[1642404435941,45.01966757,143.52,143.44,24.1949]
[1642404436143,39.01966757,143.52,143.44,24.1949]
[1642404436543,45.01966757,143.52,143.44,24.1949]
[1642404436745,39.01966757,143.52,143.44,24.1949]
[1642404437143,39.01966757,143.52,143.44,24.4449]
[1642404437344,6.0,143.52,143.44,24.4449]
[1642404437747,10.4559,143.53,143.44,24.4449]
[1642404438045,16.4559,143.53,143.44,24.4449]
[1642404438445,60.60663645,143.53,143.44,24.4449]
[1642404439252,60.60663645,143.53,143.45,69.9]
[1642404439551,16.4559,143.53,143.46,24.7253]
[1642404439952,16.4559,143.53,143.46,24.9753]
[1642404440452,16.4559,143.53,143.47,41.21446388]
[1642404441253,16.4559,143.53,143.47,41.46446388]
[1642404443454,6.0,143.53,143.47,41.46446388]
[1642404443655,6.0,143.55,143.48,69.9]
[1642404443854,524.16376999,143.59,143.48,77.048]
[1642404444054,524.16376999,143.59,143.49,1.17251084]
[1642404444253,37.21905145,143.58,143.5,45.20826505]
[1642404444456,43.21905145,143.58,143.5,45.45826505]
[1642404444654,43.21905145,143.58,143.51,23.112]
[1642404444854,43.21905145,143.58,143.51,23.362]
[1642404445053,53.67115145,143.58,143.51,23.362]
[1642404446255,53.92115145,143.58,143.51,23.362]
[1642404447259,53.92115145,143.58,143.49,44.95334487]
[1642404447459,53.67115145,143.58,143.49,45.20334487]
[1642404447664,53.92115145,143.58,143.49,45.20334487]
[1642404448159,53.92115145,143.58,143.5,22.9644]
[1642404448360,53.92115145,143.58,143.5,23.2144]
[1642404452864,53.92115145,143.58,143.5,22.9644]
[1642404458597,53.92115145,143.58,143.5,58.47155147]
[1642404458797,53.92115145,143.58,143.5,58.72155147]
[1642404459204,53.92115145,143.58,143.5,58.47155147]
[1642404459397,16.7021,143.58,143.5,64.77755147]
[1642404459600,16.7021,143.58,143.5,134.67755147]
[1642404460599,16.7021,143.58,143.5,64.77755147]
[1642404462108,16.7021,143.58,143.5,58.72155147]
[1642404465741,16.4521,143.58,143.5,58.72155147]
[1642404466411,16.7021,143.58,143.5,58.72155147]
[1642404467414,27.64728376,143.61,143.5,134.65855147]
[1642404467613,10.451,143.6,143.5,134.65855147]
[1642404468411,9.88728376,143.61,143.5,140.65855147]
[1642404468814,9.88728376,143.61,143.51,20.5693]
[1642404469011,6.25,143.61,143.51,20.5693]
[1642404469210,38.22344551,143.6,143.51,26.8193]
[1642404469412,38.47344551,143.6,143.53,117.95562273]
[1642404469611,38.47344551,143.6,143.54,24.9983]
[1642404470011,38.47344551,143.6,143.54,25.2483]
[1642404470413,0.25,143.6,143.54,25.2483]
[1642404470811,16.7002,143.61,143.54,25.2483]
[1642404471512,56.36451927,143.61,143.54,25.2483]
[1642404480136,1.95466539,143.59,143.54,25.2483]
[1642404480335,8.20466539,143.59,143.54,24.9983]
[1642404480536,7.95466539,143.59,143.51,10.12]
[1642404480756,1.95466539,143.58,143.52,22.997]
[1642404481353,42.32770914,143.58,143.52,71.56675096]
[1642404481754,42.32770914,143.58,143.52,71.81675096]
[1642404482054,1.95466539,143.58,143.52,71.81675096]
[1642404482454,2.20466539,143.58,143.52,71.81675096]
[1642404482655,8.20466539,143.58,143.52,71.81675096]
[1642404483757,40.152277,143.57,143.52,71.81675096]
[1642404483959,46.152277,143.57,143.52,23.247]
[1642404484157,40.152277,143.57,143.52,22.997]
[1642404484357,40.152277,143.57,143.52,23.247]
[1642404484757,46.152277,143.57,143.52,23.247]
[1642404485159,6.0,143.57,143.52,23.247]
[1642404485358,7.95466539,143.58,143.52,23.247]
[1642404485558,1.95466539,143.58,143.52,23.247]
[1642404485761,7.95466539,143.58,143.52,23.247]
[1642404485963,1.95466539,143.58,143.52,23.247]
[1642404486162,50.80089569,143.58,143.52,23.247]
[1642404489474,61.25309569,143.58,143.52,23.247]
[1642404490569,18.40686539,143.58,143.52,23.247]
[1642404491276,12.40686539,143.58,143.52,23.247]
[1642404491473,18.40686539,143.58,143.52,23.247]
[1642404493974,18.40686539,143.58,143.52,29.273]
[1642404494375,7.95466539,143.58,143.52,29.273]
[1642404495879,7.95466539,143.58,143.52,23.247]
[1642404496280,49.98321008,143.58,143.52,23.247]
[1642404497178,43.98321008,143.58,143.52,23.247]
[1642404497379,60.43531008,143.58,143.52,23.247]
[1642404497580,18.40676539,143.58,143.52,23.247]
[1642404499081,38.74606759,143.57,143.52,23.247]
[1642404499379,6.0,143.57,143.52,23.247]
[1642404499782,12.40676539,143.58,143.52,23.247]
[1642404499982,18.40676539,143.58,143.52,23.247]
[1642404503382,32.37306993,143.57,143.52,23.247]
[1642404503582,18.40676539,143.58,143.52,23.247]
[1642404503785,6.0,143.57,143.52,23.247]
[1642404503983,18.40676539,143.58,143.52,23.247]
[1642404504588,18.65676539,143.58,143.52,23.247]
[1642404504784,18.40676539,143.58,143.52,23.247]
[1642404506890,18.65676539,143.58,143.52,23.247]
[1642404508016,18.65676539,143.58,143.52,22.997]
[1642404508821,18.65676539,143.58,143.48,1.98486317]
[1642404509117,1.95466539,143.57,143.48,22.5479]
[1642404509316,10.4545,143.55,143.48,22.5479]
[1642404509819,10.4545,143.55,143.49,40.57256432]
[1642404510218,10.4545,143.55,143.49,40.82256432]
[1642404510418,10.4545,143.55,143.49,40.57256432]
[1642404510918,1.95466539,143.56,143.49,40.57256432]
[1642404511520,1.95466539,143.56,143.49,110.47256432]
[1642404511717,1.95466539,143.56,143.5,24.9923]
[1642404511918,12.40766539,143.57,143.5,25.2423]
[1642404513419,18.40766539,143.57,143.5,25.2423]
[1642404514218,12.40766539,143.57,143.5,25.2423]
[1642404514622,1.95466539,143.57,143.5,25.2423]
[1642404515826,1.95466539,143.58,143.5,25.2423]
[1642404516126,1.95466539,143.58,143.51,69.9]
[1642404516327,1.95466539,143.58,143.51,70.15]
[1642404516530,7.95466539,143.58,143.51,70.15]
[1642404516826,7.95466539,143.58,143.53,45.07609351]
[1642404517127,6.0,143.58,143.53,45.07609351]
[1642404517425,1.95466539,143.59,143.53,45.07609351]
[1642404517426,7.95466539,143.59,143.53,45.32609351]
[1642404517825,7.95466539,143.59,143.53,45.07609351]
[1642404518331,52.09348989,143.59,143.53,45.07609351]
[1642404518730,52.34348989,143.59,143.53,45.07609351]
[1642404519131,52.34348989,143.59,143.53,45.32609351]
[1642404519330,1.95466539,143.58,143.53,45.32609351]
[1642404519731,7.95466539,143.58,143.53,45.32609351]
[1642404519929,6.0,143.58,143.53,45.32609351]
[1642404520333,7.95466539,143.59,143.53,45.32609351]
[1642404520532,1.95466539,143.59,143.53,45.32609351]
[1642404520730,7.95466539,143.59,143.53,45.32609351]
[1642404521233,45.63136823,143.59,143.53,0.25]
[1642404521432,45.63136823,143.59,143.52,24.138]
[1642404521634,45.88136823,143.59,143.52,24.138]
[1642404522134,45.88136823,143.59,143.52,63.95587583]
[1642404522333,7.95466539,143.59,143.52,63.95587583]
[1642404523539,51.4928064,143.59,143.52,63.95587583]
[1642404524438,51.7428064,143.59,143.52,63.95587583]
[1642404524840,51.7428064,143.59,143.52,24.138]
[1642404525141,62.1943064,143.59,143.52,24.138]
[1642404526943,62.1943064,143.59,143.52,68.45980683]
[1642404527142,18.40616539,143.59,143.52,68.45980683]
[1642404527343,1.95466539,143.58,143.52,68.45980683]
[1642404527743,7.95466539,143.58,143.52,68.45980683]
[1642404528344,6.0,143.58,143.52,68.45980683]
[1642404528747,66.10487275,143.59,143.52,68.45980683]
[1642404528947,66.10487275,143.59,143.52,24.138]
[1642404529346,66.35487275,143.59,143.52,24.138]
[1642404529548,66.10487275,143.59,143.52,24.138]
[1642404530249,1.95466539,143.59,143.53,35.58769661]
[1642404530448,1.95466539,143.59,143.54,10.12]
[1642404530647,1.95466539,143.59,143.55,69.9]
[1642404530850,1.95466539,143.59,143.55,16.397]
[1642404531550,1.95466539,143.59,143.55,6.277]
[1642404531748,1.95466539,143.59,143.55,0.25]
[1642404531949,47.73773808,143.61,143.55,0.25]
[1642404532253,47.73773808,143.61,143.52,33.6054]
[1642404532448,47.73773808,143.61,143.52,33.8554]
[1642404532951,1.95466539,143.6,143.52,33.8554]
[1642404533150,1.95466539,143.6,143.52,103.7554]
[1642404533376,2.20466539,143.6,143.52,33.6054]
[1642404533578,8.20466539,143.6,143.52,10.12]
[1642404533878,8.20466539,143.6,143.48,12.10486317]
[1642404534076,8.20466539,143.6,143.49,68.21306517]
[1642404534477,18.65576539,143.6,143.49,68.21306517]
[1642404534677,32.29962494,143.57,143.49,68.21306517]
[1642404535076,32.29962494,143.57,143.49,68.46306517]
[1642404535878,32.29962494,143.57,143.49,68.21306517]
[1642404536082,43.00272494,143.57,143.49,23.6376]
[1642404536281,49.00272494,143.57,143.49,23.6376]
[1642404537383,10.4557,143.54,143.49,23.6376]
[1642404537579,47.73773808,143.53,143.49,23.6376]
[1642404538181,53.73773808,143.53,143.49,23.6376]
[1642404538680,6.0,143.53,143.49,23.6376]
[1642404538880,16.4557,143.54,143.49,23.6376]
[1642404540084,16.4557,143.54,143.49,65.69734599]
[1642404540686,16.4557,143.54,143.49,65.94734599]
[1642404541086,6.0,143.54,143.49,65.94734599]
[1642404541488,18.40876539,143.56,143.49,23.8876]
[1642404541686,18.40876539,143.56,143.49,23.6376]
[1642404541883,16.7041,143.56,143.49,23.6376]
[1642404542488,43.28688157,143.55,143.49,23.6376]
[1642404542884,10.4552,143.54,143.49,23.6376]
[1642404543485,16.4552,143.54,143.49,23.6376]
[1642404545487,12.40836539,143.56,143.49,23.6376]
[1642404545688,1.95466539,143.56,143.49,23.8876]
[1642404545888,1.95466539,143.56,143.49,93.5376]
[1642404546189,1.95466539,143.56,143.49,23.6376]
[1642404546992,1.95466539,143.57,143.49,23.6376]
[1642404547389,1.95466539,143.57,143.49,23.8876]
[1642404547589,1.95466539,143.57,143.49,103.9076]
[1642404547791,12.40726539,143.58,143.49,103.9076]
[1642404547990,12.65726539,143.58,143.49,103.9076]
[1642404548489,12.40726539,143.58,143.49,103.9076]
[1642404549389,10.4526,143.58,143.49,103.9076]
[1642404550091,1.95466539,143.59,143.49,103.9076]
[1642404550292,7.95466539,143.59,143.49,103.9076]
[1642404550490,1.95466539,143.59,143.49,103.9076]
[1642404550891,7.95466539,143.59,143.49,103.9076]
[1642404551489,7.95466539,143.59,143.49,114.3585]
[1642404552994,7.95466539,143.59,143.49,120.3585]
[1642404553192,7.95466539,143.59,143.49,114.3585]
[1642404553393,8.20466539,143.59,143.49,114.3585]
[1642404553594,7.95466539,143.59,143.49,114.3585]
[1642404553994,32.31196539,143.59,143.49,114.3585]
[1642404554394,32.56196539,143.59,143.49,114.3585]
[1642404557697,43.01396539,143.59,143.49,103.9076]
[1642404558497,42.76396539,143.59,143.49,103.9076]
[1642404558699,1.95466539,143.58,143.49,103.9076]
[1642404564002,7.95466539,143.58,143.49,103.9076]
[1642404567704,1.95466539,143.58,143.49,114.3583]
[1642404569206,7.95466539,143.58,143.49,114.3583]
[1642404569604,1.95466539,143.58,143.49,114.3583]
[1642404569806,1.95466539,143.58,143.49,114.1083]
[1642404571006,1.95466539,143.57,143.49,114.1083]
[1642404571210,1.95466539,143.57,143.49,114.3583]
[1642404574310,1.95466539,143.57,143.49,103.9076]
[1642404574736,1.95466539,143.57,143.49,114.3583]
[1642404575637,1.95466539,143.56,143.49,114.3583]
[1642404577239,1.95466539,143.57,143.49,114.3583]
[1642404577639,34.74307883,143.56,143.49,103.9076]
[1642404577840,34.74307883,143.56,143.49,34.0076]
[1642404578044,1.95466539,143.57,143.5,69.9]
[1642404578241,1.95466539,143.57,143.5,80.02]
[1642404578441,1.95466539,143.56,143.5,80.27]
[1642404578842,1.95466539,143.56,143.51,24.0747]
[1642404579242,1.95466539,143.56,143.51,24.3247]
[1642404586057,1.95466539,143.56,143.51,94.2247]
[1642404589361,1.95466539,143.57,143.51,94.2247]
[1642404590257,1.95466539,143.57,143.51,102.3967]
[1642404590460,1.95466539,143.57,143.52,1.18147234]
[1642404590861,1.95466539,143.57,143.52,1.43147234]
[1642404591057,1.95466539,143.58,143.54,69.9]
[1642404591459,1.95466539,143.58,143.54,70.15]
[1642404592060,1.95466539,143.58,143.54,0.25]
[1642404592261,1.95466539,143.6,143.54,0.25]
[1642404592465,7.95466539,143.6,143.54,22.8237]
[1642404592862,7.95466539,143.6,143.54,23.0737]
[1642404594295,1.95466539,143.59,143.54,23.0737]
[1642404594794,7.95466539,143.59,143.54,23.0737]
[1642404595793,7.45466539,143.59,143.54,23.0737]
[1642404596494,6.0,143.59,143.54,23.0737]
[1642404596995,16.4496,143.62,143.54,23.0737]
[1642404597198,16.6996,143.62,143.54,23.0737]
[1642404600201,16.6996,143.62,143.54,22.8237]
[1642404601704,16.6996,143.62,143.54,23.0737]
[1642404603404,16.6996,143.62,143.54,92.9737]
[1642404603607,16.4496,143.62,143.54,92.9737]
[1642404604006,16.6996,143.62,143.54,92.9737]
[1642404604405,16.4496,143.62,143.54,92.9737]
[1642404604607,16.6996,143.62,143.54,92.9737]
[1642404604808,16.4496,143.62,143.54,92.9737]
[1642404606910,16.6996,143.62,143.54,92.9737]
[1642404607915,6.25,143.62,143.54,92.9737]
[1642404608113,0.25,143.62,143.54,92.9737]
[1642404608312,49.75315525,143.63,143.54,92.9737]
[1642404609213,7.44782345,143.63,143.54,92.9737]
[1642404609513,1.44782345,143.63,143.54,104.27517234]
[1642404609713,1.44782345,143.63,143.54,109.66517234]
[1642404610517,1.44782345,143.63,143.54,120.11227234]
[1642404611319,45.85758607,143.66,143.54,120.11227234]
[1642404611523,3.88728376,143.66,143.54,120.11227234]
[1642404611715,3.88728376,143.66,143.54,126.11227234]
[1642404612121,39.10908376,143.67,143.54,126.11227234]
[1642404612316,39.35908376,143.67,143.54,126.11227234]
[1642404612517,28.91308376,143.67,143.54,126.11227234]
[1642404613315,34.91308376,143.67,143.54,126.11227234]
[1642404614218,10.13728376,143.67,143.54,126.11227234]
[1642404614719,6.25,143.67,143.54,126.11227234]
[1642404614916,0.25,143.67,143.54,126.11227234]
[1642404615217,55.58096383,143.68,143.54,126.11227234]
[1642404615415,3.88728376,143.67,143.54,126.11227234]
[1642404615818,10.13728376,143.67,143.54,126.11227234]
[1642404616017,10.13728376,143.67,143.54,120.72227234]
[1642404616220,10.21450559,143.67,143.54,120.72227234]
[1642404616418,10.21450559,143.67,143.54,119.5408]
[1642404616617,20.66050559,143.67,143.54,109.0937]
[1642404616820,20.66050559,143.67,143.54,102.8437]
[1642404617217,20.58328376,143.67,143.54,102.8437]
[1642404618218,3.88728376,143.65,143.54,102.8437]
[1642404618422,10.4498,143.62,143.54,102.8437]
[1642404618620,34.59368295,143.61,143.54,102.8437]
[1642404618921,34.59368295,143.61,143.54,103.0937]
[1642404619820,34.59368295,143.61,143.54,102.8437]
[1642404620619,34.59368295,143.61,143.54,32.9437]
[1642404620820,50.70518295,143.61,143.5,10.12]
[1642404621125,56.70518295,143.61,143.51,24.1295]
[1642404621322,56.70518295,143.61,143.51,24.3795]
[1642404622025,56.70518295,143.61,143.47,94.1563]
[1642404622223,66.82518295,143.61,143.48,23.6683]
[1642404623223,70.71246671,143.61,143.46,10.12]
[1642404624023,10.4563,143.56,143.46,10.12]
[1642404624223,41.54374211,143.55,143.46,10.12]
[1642404624423,41.54374211,143.55,143.46,10.37]
[1642404624424,41.79374211,143.55,143.46,10.37]
[1642404624627,47.79374211,143.55,143.46,10.37]
[1642404625426,10.4561,143.53,143.46,10.37]
[1642404628463,14.00728376,143.59,143.47,71.08147234]
[1642404628864,14.00728376,143.59,143.47,71.33147234]
[1642404629262,10.12,143.59,143.47,71.33147234]
[1642404629463,10.4538,143.57,143.48,47.66754158]
[1642404629865,10.4538,143.57,143.48,71.91574158]
[1642404630464,10.7038,143.57,143.48,71.91574158]
[1642404630869,16.7038,143.57,143.48,24.2482]
[1642404632167,16.7038,143.57,143.46,42.55756029]
[1642404632366,16.7038,143.57,143.46,42.80756029]
[1642404633566,16.7038,143.57,143.46,0.25]
[1642404633870,16.7038,143.57,143.45,25.2356]
[1642404634466,6.25,143.57,143.45,25.2356]
[1642404634666,16.7038,143.57,143.45,25.2356]
[1642404634867,10.7038,143.57,143.45,24.9856]
[1642404635967,16.7038,143.57,143.45,24.9856]
[1642404636266,16.7038,143.57,143.45,25.2356]
[1642404641176,86.6038,143.57,143.45,25.2356]
[1642404641678,86.6038,143.57,143.46,42.62241198]
[1642404641878,16.7038,143.57,143.46,42.87241198]
[1642404642575,3.63235801,143.56,143.46,42.87241198]
[1642404642778,10.4557,143.54,143.46,42.87241198]
[1642404642977,10.4557,143.54,143.46,0.25]
[1642404643177,10.4557,143.54,143.45,24.9856]
[1642404644077,16.7057,143.54,143.45,24.9856]
[1642404644683,14.08695801,143.56,143.45,95.1356]
[1642404644877,14.08695801,143.56,143.45,101.1946]
[1642404645077,14.08695801,143.56,143.45,117.3146]
[1642404645806,14.33695801,143.56,143.45,117.3146]
[1642404646380,14.33695801,143.56,143.45,127.7682]
[1642404647578,20.33695801,143.56,143.45,127.7682]
[1642404647778,14.33695801,143.56,143.45,127.7682]
[1642404647979,14.08695801,143.56,143.45,127.7682]
[1642404648581,14.08695801,143.56,143.45,121.7682]
[1642404648782,20.08695801,143.56,143.45,45.8092]
[1642404649181,20.08695801,143.56,143.45,115.7092]
[1642404649580,20.08695801,143.56,143.45,45.8092]
[1642404650183,20.08695801,143.56,143.45,52.4562]
[1642404650581,14.08695801,143.56,143.45,52.4562]
[1642404650783,14.08695801,143.56,143.45,122.3562]
[1642404651182,10.4546,143.56,143.45,122.3562]
[1642404651384,10.4546,143.56,143.45,52.4562]
[1642404651584,10.4546,143.56,143.45,51.8092]
[1642404651784,10.4546,143.56,143.45,45.8092]
[1642404652185,16.4546,143.56,143.45,45.8092]
[1642404653084,16.4546,143.56,143.45,115.7092]
[1642404656593,16.4546,143.56,143.45,121.7092]
[1642404656794,16.4546,143.56,143.45,115.7092]
[1642404657199,16.4546,143.56,143.45,126.0885]
[1642404662927,10.4546,143.56,143.45,126.0885]
[1642404667936,16.4546,143.56,143.45,132.0885]
[1642404668234,16.4546,143.56,143.45,126.0885]
[1642404673142,16.4546,143.56,143.45,127.26997234]
[1642404677349,10.4546,143.56,143.45,127.26997234]
[1642404680881,16.4546,143.56,143.45,127.26997234]
[1642404684383,20.08880956,143.56,143.45,127.26997234]
[1642404686486,6.0,143.56,143.45,133.26997234]
[1642404686886,54.08264849,143.58,143.45,133.26997234]
[1642404687187,54.33264849,143.58,143.45,133.26997234]
[1642404690391,60.33264849,143.58,143.45,133.26997234]
[1642404691694,60.33264849,143.58,143.45,127.26997234]
[1642404692094,60.33264849,143.58,143.45,57.36997234]
[1642404692296,60.33264849,143.58,143.45,127.26997234]
[1642404696503,60.33264849,143.58,143.45,116.81637234]
[1642404699229,60.33264849,143.58,143.45,122.81637234]
[1642404700433,60.33264849,143.58,143.45,127.27017234]
[1642404701829,60.08264849,143.58,143.45,127.27017234]
[1642404702430,60.08264849,143.58,143.45,133.27017234]
[1642404703030,60.08264849,143.58,143.45,127.27017234]
[1642404703331,10.12,143.57,143.45,35.3649]
[1642404703531,10.4578,143.53,143.45,24.9856]
[1642404703735,10.4578,143.53,143.43,27.69972049]
[1642404703935,10.7078,143.53,143.43,27.69972049]
[1642404704432,10.7078,143.53,143.43,23.7244]
[1642404704835,10.7078,143.53,143.43,23.9744]
[1642404707441,16.7078,143.53,143.43,23.9744]
[1642404708641,16.7078,143.53,143.44,41.34937886]
[1642404708841,3.88728376,143.54,143.44,41.59937886]
[1642404709045,3.88728376,143.54,143.44,111.49937886]
[1642404709252,3.88728376,143.54,143.44,41.59937886]
[1642404709443,3.88728376,143.54,143.44,51.71937886]
[1642404709644,3.88728376,143.54,143.45,23.1879]
[1642404709843,3.88728376,143.54,143.45,23.4379]
[1642404710444,10.4555,143.55,143.45,23.4379]
[1642404711046,16.4555,143.55,143.45,23.4379]
[1642404711244,10.4555,143.55,143.45,23.4379]
[1642404712445,16.7055,143.55,143.45,23.4379]
[1642404717078,1.93578768,143.53,143.45,23.4379]
[1642404717249,10.4578,143.52,143.45,23.4379]
[1642404717449,10.7078,143.52,143.45,23.4379]
[1642404720956,16.7078,143.52,143.45,23.4379]
[1642404725359,10.7078,143.52,143.45,23.4379]
[1642404726163,1.93578768,143.53,143.45,68.16556044]
[1642404726962,12.39208768,143.54,143.45,68.16556044]
[1642404727563,12.39208768,143.54,143.45,138.06556044]
[1642404727763,1.93578768,143.54,143.45,138.06556044]
[1642404727962,1.93578768,143.54,143.45,68.16556044]
[1642404728164,1.93578768,143.54,143.45,23.4379]
[1642404728763,12.39208768,143.54,143.45,23.4379]
[1642404729164,18.39208768,143.54,143.46,37.97869137]
[1642404729362,12.39208768,143.54,143.47,24.5084]
[1642404729564,18.39208768,143.54,143.47,24.5084]
[1642404729766,18.39208768,143.54,143.47,24.7584]
[1642404730769,12.39208768,143.54,143.47,24.7584]
[1642404732663,1.93578768,143.54,143.47,24.7584]
[1642404734569,1.93578768,143.54,143.47,94.6584]
[1642404736978,7.93578768,143.54,143.47,94.6584]
[1642404739802,6.0,143.54,143.47,94.6584]
[1642404740203,1.93578768,143.55,143.47,94.6584]
[1642404740404,2.18578768,143.55,143.47,94.6584]
[1642404742608,1.93578768,143.55,143.47,94.6584]
[1642404743009,1.93578768,143.55,143.47,100.6584]
[1642404743807,1.93578768,143.55,143.47,121.2306]
[1642404744007,1.93578768,143.55,143.47,128.6846]
[1642404744207,1.93578768,143.56,143.47,128.6846]
[1642404745212,1.27419219,143.58,143.47,130.6704739]
[1642404745407,1.93578768,143.59,143.47,130.6704739]
[1642404745609,7.93578768,143.59,143.47,130.6704739]
[1642404746812,6.0,143.59,143.47,128.6846]
[1642404747209,1.93578768,143.6,143.47,128.6846]
[1642404747611,7.93578768,143.6,143.47,128.6846]
[1642404747812,7.93578768,143.6,143.47,121.2306]
[1642404751111,6.0,143.6,143.47,123.2164739]
[1642404751312,30.7889546,143.61,143.47,123.2164739]
[1642404751513,30.7889546,143.61,143.47,133.4103739]
[1642404752313,30.7889546,143.61,143.47,131.4245]
[1642404753115,28.85316692,143.61,143.47,131.4245]
[1642404755313,36.7889546,143.61,143.47,131.4245]
[1642404756814,36.7889546,143.61,143.47,131.1745]
[1642404758015,1.93578768,143.61,143.47,149.29547036]
[1642404758219,1.93578768,143.61,143.47,155.21947036]
[1642404758617,1.93578768,143.61,143.49,69.9]
[1642404758817,1.93578768,143.61,143.53,69.9]
[1642404759017,1.93578768,143.61,143.55,69.9]
[1642404759318,30.12219112,143.63,143.51,69.9]
[1642404759516,30.12219112,143.63,143.51,80.02]
[1642404759717,30.12219112,143.63,143.51,86.02]
[1642404760218,23.6378,143.62,143.53,69.9]
[1642404760518,30.12219112,143.63,143.53,80.5978]
[1642404761321,30.12219112,143.63,143.55,69.9]
[1642404761520,30.12219112,143.63,143.56,23.5962]
[1642404761920,30.12219112,143.63,143.56,23.8462]
[1642404765725,36.12219112,143.63,143.56,23.8462]
[1642404766027,28.18640344,143.63,143.56,23.8462]
[1642404766724,30.12219112,143.63,143.56,23.8462]
[1642404768325,36.12219112,143.63,143.56,23.8462]
[1642404768528,30.12219112,143.63,143.56,23.8462]
[1642404772129,1.93578768,143.62,143.56,23.8462]
[1642404773131,1.93578768,143.63,143.56,23.8462]
[1642404773833,1.93578768,143.63,143.58,41.18685271]
[1642404774333,3.88728376,143.66,143.58,41.43685271]
[1642404774334,1.93578768,143.64,143.58,41.43685271]
[1642404774532,1.93578768,143.64,143.59,23.6081]
[1642404774733,7.93578768,143.64,143.59,23.6081]
[1642404774932,7.93578768,143.64,143.59,23.8581]
[1642404777636,6.0,143.64,143.59,23.8581]
[1642404777835,1.93578768,143.65,143.59,23.8581]
[1642404778036,7.93578768,143.65,143.59,23.8581]
[1642404778234,1.93578768,143.65,143.59,23.8581]
[1642404778736,1.93578768,143.65,143.59,23.6081]
[1642404779943,7.93578768,143.65,143.59,23.6081]
[1642404780142,7.93578768,143.65,143.59,23.8581]
[1642404783565,1.93578768,143.64,143.59,23.8581]
[1642404784472,3.88728376,143.68,143.59,23.8581]
[1642404784473,1.93578768,143.65,143.59,23.8581]
[1642404787172,1.93578768,143.65,143.59,93.7581]
[1642404787474,1.93578768,143.64,143.59,93.7581]
[1642404791377,7.93578768,143.64,143.59,93.7581]
[1642404795282,7.93578768,143.64,143.59,23.8581]
[1642404796579,7.93578768,143.64,143.59,93.7581]
[1642404798482,7.93578768,143.64,143.59,23.8581]
[1642404799485,7.93578768,143.64,143.59,23.6081]
[1642404799686,7.93578768,143.64,143.59,93.5081]
[1642404800585,1.93578768,143.63,143.59,93.5081]
[1642404800784,1.93578768,143.63,143.59,93.7581]
[1642404802589,1.93578768,143.64,143.59,93.7581]
[1642404803389,1.93578768,143.64,143.59,23.6081]